[Event "Titled Tuesday Blitz May 2 Early 2023"]
[White "Dinu, Dumitru-Daniel"]
[Black "Harshavardhan G B"]
[WhiteFideId "1208403"]
[BlackFideId "25059009"]
[WhiteElo "2240"]
[BlackElo "2323"]
[Result "1-0"]
[Round "01"]
[TimeControl "180+2"]
[Date "2023.05.02"]
[WhiteClock "0:00:00"]
[BlackClock "0:00:00"]

1. e4 {[%clk 0:00:01]}  e6 {[%clk 0:00:01]} 2. d4 {[%clk 0:00:01]}  d5 {[%clk 0:00:01]} 3. exd5 {[%clk 0:00:01]}  exd5 {[%clk 0:00:01]} 4. Nf3 {[%clk 0:00:01]}  Bd6 {[%clk 0:00:01]} 5. c4 {[%clk 0:00:01]}  dxc4 {[%clk 0:00:01]} 6. Bxc4 {[%clk 0:00:01]}  Nf6 {[%clk 0:00:01]} 7. O-O {[%clk 0:00:01]}  O-O {[%clk 0:00:01]} 8. Nc3 {[%clk 0:00:01]}  Nc6 {[%clk 0:00:01]} 9. Bg5 {[%clk 0:00:01]}  h6 {[%clk 0:00:01]} 10. Bh4 {[%clk 0:00:01]}  Bg4 {[%clk 0:00:01]} 11. h3 {[%clk 0:00:01]}  Bh5 {[%clk 0:00:01]} 12. g4 {[%clk 0:00:01]}  Bg6 {[%clk 0:00:01]} 13. Nd5 {[%clk 0:00:01]}  Be7 {[%clk 0:00:01]} 14. Nxe7+ {[%clk 0:00:01]}  Qxe7 {[%clk 0:00:01]} 15. Re1 {[%clk 0:00:01]}  Qd6 {[%clk 0:00:01]} 16. Ne5 {[%clk 0:00:01]}  Kh7 {[%clk 0:00:01]} 17. f4 {[%clk 0:00:01]}  Nxd4 {[%clk 0:00:00]} 18. f5 {[%clk 0:00:01]}  Bxf5 {[%clk 0:00:00]} 19. gxf5 {[%clk 0:00:01]}  Rae8 {[%clk 0:00:00]} 20. Bg3 {[%clk 0:00:01]}  Nxf5 {[%clk 0:00:00]} 21. Bd3 {[%clk 0:00:01]}  Qd4+ {[%clk 0:00:00]} 22. Kh2 {[%clk 0:00:01]}  g6 {[%clk 0:00:00]} 23. Bxf5 {[%clk 0:00:01]}  Qxb2+ {[%clk 0:00:00]} 24. Re2 {[%clk 0:00:01]}  Qc3 {[%clk 0:00:00]} 25. Rc1 {[%clk 0:00:00]}  Qa5 {[%clk 0:00:00]} 26. Bb1 {[%clk 0:00:00]}  Nh5 {[%clk 0:00:00]} 27. Qe1 {[%clk 0:00:00]}  Qb6 {[%clk 0:00:00]} 28. Nd7 {[%clk 0:00:00]}  Qd4 {[%clk 0:00:00]} 29. Nxf8+ {[%clk 0:00:00]}  Rxf8 {[%clk 0:00:00]} 30. Rd1 {[%clk 0:00:00]}  Qa4 {[%clk 0:00:00]} 31. Re4 {[%clk 0:00:00]}  Qc6 {[%clk 0:00:00]} 32. Rg4 {[%clk 0:00:00]}  Nf6 {[%clk 0:00:00]} 33. Rf4 {[%clk 0:00:00]}  Nh5 {[%clk 0:00:00]} 34. Rf2 {[%clk 0:00:00]} 1-0


[Site "https://www.chess.com"]

[Event "Titled Tuesday Blitz May 2 Early 2023"]
[White "Panesar Vedant"]
[Black "Da Silva, Lindolfo Luiz"]
[WhiteFideId "35033018"]
[BlackFideId "2106558"]
[WhiteElo "2278"]
[BlackElo "2207"]
[Result "1-0"]
[Round "01"]
[TimeControl "180+2"]
[Date "2023.05.02"]
[WhiteClock "0:00:00"]
[BlackClock "0:00:00"]

1. e4 {[%clk 0:00:01]}  c5 {[%clk 0:00:01]} 2. Nf3 {[%clk 0:00:01]}  Nc6 {[%clk 0:00:01]} 3. d4 {[%clk 0:00:01]}  cxd4 {[%clk 0:00:01]} 4. Nxd4 {[%clk 0:00:01]}  Nf6 {[%clk 0:00:01]} 5. Nc3 {[%clk 0:00:01]}  e5 {[%clk 0:00:01]} 6. Ndb5 {[%clk 0:00:01]}  d6 {[%clk 0:00:01]} 7. Nd5 {[%clk 0:00:01]}  Nxd5 {[%clk 0:00:01]} 8. exd5 {[%clk 0:00:01]}  Nb8 {[%clk 0:00:01]} 9. a4 {[%clk 0:00:01]}  Be7 {[%clk 0:00:01]} 10. Be2 {[%clk 0:00:01]}  O-O {[%clk 0:00:01]} 11. O-O {[%clk 0:00:01]}  Nd7 {[%clk 0:00:01]} 12. Kh1 {[%clk 0:00:01]}  f5 {[%clk 0:00:01]} 13. f4 {[%clk 0:00:01]}  a6 {[%clk 0:00:01]} 14. Na3 {[%clk 0:00:01]}  b5 {[%clk 0:00:01]} 15. fxe5 {[%clk 0:00:01]}  Nxe5 {[%clk 0:00:01]} 16. axb5 {[%clk 0:00:01]}  axb5 {[%clk 0:00:01]} 17. Bxb5 {[%clk 0:00:01]}  Qb6 {[%clk 0:00:01]} 18. c4 {[%clk 0:00:01]}  g5 {[%clk 0:00:01]} 19. b4 {[%clk 0:00:01]}  f4 {[%clk 0:00:01]} 20. Bb2 {[%clk 0:00:01]}  Bf6 {[%clk 0:00:01]} 21. Nc2 {[%clk 0:00:01]}  Bg4 {[%clk 0:00:00]} 22. Qd4 {[%clk 0:00:01]}  Qxd4 {[%clk 0:00:00]} 23. Bxd4 {[%clk 0:00:01]}  Be2 {[%clk 0:00:00]} 24. Rxa8 {[%clk 0:00:00]}  Rxa8 {[%clk 0:00:00]} 25. Re1 {[%clk 0:00:00]}  f3 {[%clk 0:00:00]} 26. gxf3 {[%clk 0:00:00]}  Bxf3+ {[%clk 0:00:00]} 27. Kg1 {[%clk 0:00:00]}  Ra2 {[%clk 0:00:00]} 28. Rc1 {[%clk 0:00:00]}  Nd3 {[%clk 0:00:00]} 29. Bxf6 {[%clk 0:00:00]}  Nxc1 {[%clk 0:00:00]} 30. Nd4 {[%clk 0:00:00]}  Rg2+ {[%clk 0:00:00]} 31. Kf1 {[%clk 0:00:00]}  Be4 {[%clk 0:00:00]} 32. c5 {[%clk 0:00:00]}  dxc5 {[%clk 0:00:00]} 33. bxc5 {[%clk 0:00:00]}  Bxd5 {[%clk 0:00:00]} 34. Bc4 {[%clk 0:00:00]}  Bxc4+ {[%clk 0:00:00]} 35. Kxg2 {[%clk 0:00:00]}  Nd3 {[%clk 0:00:00]} 36. c6 {[%clk 0:00:00]}  Kf7 {[%clk 0:00:00]} 37. c7 {[%clk 0:00:00]}  Bd5+ {[%clk 0:00:00]} 38. Kf1 {[%clk 0:00:00]}  Bb7 {[%clk 0:00:00]} 39. Bxg5 {[%clk 0:00:00]}  Ne5 {[%clk 0:00:00]} 40. Nb5 {[%clk 0:00:00]}  Nd7 {[%clk 0:00:00]} 41. Nd6+ {[%clk 0:00:00]}  Ke6 {[%clk 0:00:00]} 42. Nxb7 {[%clk 0:00:00]}  Nb6 {[%clk 0:00:00]} 43. Nc5+ {[%clk 0:00:00]}  Kd6 {[%clk 0:00:00]} 44. Nd3 {[%clk 0:00:00]}  Kxc7 {[%clk 0:00:00]} 45. Bf4+ {[%clk 0:00:00]}  Kd7 {[%clk 0:00:00]} 46. Kf2 {[%clk 0:00:00]}  Ke6 {[%clk 0:00:00]} 47. Kf3 {[%clk 0:00:00]}  Kf5 {[%clk 0:00:00]} 48. Nf2 {[%clk 0:00:00]}  Nd5 {[%clk 0:00:00]} 49. Bg3 {[%clk 0:00:00]}  h5 {[%clk 0:00:00]} 50. Nd1 {[%clk 0:00:00]}  Kg6 {[%clk 0:00:00]} 51. Ne3 {[%clk 0:00:00]}  Nf6 {[%clk 0:00:00]} 52. h4 {[%clk 0:00:00]}  Nd7 {[%clk 0:00:00]} 53. Bf4 {[%clk 0:00:00]}  Nf6 {[%clk 0:00:00]} 54. Bg5 {[%clk 0:00:00]}  Nd7 {[%clk 0:00:00]} 55. Ng2 {[%clk 0:00:00]}  Ne5+ {[%clk 0:00:00]} 56. Kg3 {[%clk 0:00:00]}  Kf5 {[%clk 0:00:00]} 57. Nf4 {[%clk 0:00:00]}  Nf7 {[%clk 0:00:00]} 58. Be7 {[%clk 0:00:00]}  Nh6 {[%clk 0:00:00]} 59. Ba3 {[%clk 0:00:00]}  Kf6 {[%clk 0:00:00]} 60. Nxh5+ {[%clk 0:00:00]}  Kf5 {[%clk 0:00:00]} 61. Kf3 {[%clk 0:00:00]}  Ng4 {[%clk 0:00:00]} 62. Ng3+ {[%clk 0:00:00]}  Kg6 {[%clk 0:00:00]} 63. Kxg4 {[%clk 0:00:00]} 1-0


[Site "https://www.chess.com"]

[Event "Titled Tuesday Blitz May 2 Early 2023"]
[White "Nemec, Jachym"]
[Black "Zhao, Jun"]
[WhiteFideId "23716525"]
[BlackFideId "8602522"]
[WhiteElo "2305"]
[BlackElo "2547"]
[Result "0-1"]
[Round "01"]
[TimeControl "180+2"]
[Date "2023.05.02"]
[WhiteClock "0:00:00"]
[BlackClock "0:00:00"]

1. d4 {[%clk 0:00:01]}  Nf6 {[%clk 0:00:01]} 2. c4 {[%clk 0:00:01]}  e6 {[%clk 0:00:01]} 3. Nc3 {[%clk 0:00:01]}  Bb4 {[%clk 0:00:01]} 4. e3 {[%clk 0:00:01]}  O-O {[%clk 0:00:01]} 5. a3 {[%clk 0:00:01]}  Bxc3+ {[%clk 0:00:01]} 6. bxc3 {[%clk 0:00:01]}  d6 {[%clk 0:00:01]} 7. Bd3 {[%clk 0:00:01]}  e5 {[%clk 0:00:01]} 8. f3 {[%clk 0:00:01]}  c5 {[%clk 0:00:01]} 9. Ne2 {[%clk 0:00:01]}  Nc6 {[%clk 0:00:01]} 10. e4 {[%clk 0:00:01]}  b6 {[%clk 0:00:01]} 11. d5 {[%clk 0:00:01]}  Na5 {[%clk 0:00:01]} 12. O-O {[%clk 0:00:01]}  Ba6 {[%clk 0:00:01]} 13. f4 {[%clk 0:00:01]}  Nd7 {[%clk 0:00:01]} 14. f5 {[%clk 0:00:01]}  Bxc4 {[%clk 0:00:01]} 15. Ng3 {[%clk 0:00:01]}  f6 {[%clk 0:00:01]} 16. Nh5 {[%clk 0:00:01]}  Rf7 {[%clk 0:00:01]} 17. Rf3 {[%clk 0:00:01]}  Bxd3 {[%clk 0:00:01]} 18. Qxd3 {[%clk 0:00:01]}  c4 {[%clk 0:00:01]} 19. Qe2 {[%clk 0:00:01]}  Nb3 {[%clk 0:00:01]} 20. Rb1 {[%clk 0:00:01]}  Nxc1 {[%clk 0:00:01]} 21. Rxc1 {[%clk 0:00:01]}  Nc5 {[%clk 0:00:01]} 22. Rh3 {[%clk 0:00:01]}  Nd3 {[%clk 0:00:01]} 23. Rf1 {[%clk 0:00:01]}  Qc7 {[%clk 0:00:01]} 24. Kh1 {[%clk 0:00:01]}  Qc5 {[%clk 0:00:01]} 25. g4 {[%clk 0:00:01]}  h6 {[%clk 0:00:01]} 26. Qd2 {[%clk 0:00:01]}  Kf8 {[%clk 0:00:01]} 27. Nxg7 {[%clk 0:00:01]}  Rxg7 {[%clk 0:00:01]} 28. Qxh6 {[%clk 0:00:01]}  Kf7 {[%clk 0:00:00]} 29. Qh5+ {[%clk 0:00:00]}  Ke7 {[%clk 0:00:00]} 30. g5 {[%clk 0:00:00]}  Rag8 {[%clk 0:00:00]} 31. gxf6+ {[%clk 0:00:00]}  Kxf6 {[%clk 0:00:00]} 32. Qh6+ {[%clk 0:00:00]}  Kf7 {[%clk 0:00:00]} 33. Qe6+ {[%clk 0:00:00]}  Kf8 {[%clk 0:00:00]} 34. Rg3 {[%clk 0:00:00]}  Rxg3 {[%clk 0:00:00]} 35. hxg3 {[%clk 0:00:00]}  Qc7 {[%clk 0:00:00]} 36. f6 {[%clk 0:00:00]}  Qh7+ {[%clk 0:00:00]} 37. Kg2 {[%clk 0:00:00]}  Qxe4+ {[%clk 0:00:00]} 38. Rf3 {[%clk 0:00:00]}  Nf4+ {[%clk 0:00:00]} 39. Kh1 {[%clk 0:00:00]}  Qxf3+ {[%clk 0:00:00]} 40. Kg1 {[%clk 0:00:00]}  Qg2# {[%clk 0:00:00]} 0-1


[Site "https://www.chess.com"]

[Event "Titled Tuesday Blitz May 2 Early 2023"]
[White "Albornoz Cabrera, Carlos Daniel"]
[Black "Toktomushev, Teimur"]
[WhiteFideId "3518736"]
[BlackFideId "14176726"]
[WhiteElo "2516"]
[BlackElo "2116"]
[Result "1-0"]
[Round "01"]
[TimeControl "180+2"]
[Date "2023.05.02"]
[WhiteClock "0:00:00"]
[BlackClock "0:00:00"]

1. e4 {[%clk 0:00:01]}  c5 {[%clk 0:00:01]} 2. Nf3 {[%clk 0:00:01]}  e6 {[%clk 0:00:01]} 3. d4 {[%clk 0:00:01]}  cxd4 {[%clk 0:00:01]} 4. Nxd4 {[%clk 0:00:01]}  a6 {[%clk 0:00:01]} 5. Nc3 {[%clk 0:00:01]}  b5 {[%clk 0:00:01]} 6. Bd3 {[%clk 0:00:01]}  Bb7 {[%clk 0:00:01]} 7. O-O {[%clk 0:00:01]}  Nc6 {[%clk 0:00:01]} 8. Nxc6 {[%clk 0:00:01]}  Bxc6 {[%clk 0:00:01]} 9. a4 {[%clk 0:00:01]}  b4 {[%clk 0:00:01]} 10. Ne2 {[%clk 0:00:01]}  Bc5 {[%clk 0:00:01]} 11. Kh1 {[%clk 0:00:01]}  Nf6 {[%clk 0:00:01]} 12. f3 {[%clk 0:00:01]}  O-O {[%clk 0:00:01]} 13. Ng3 {[%clk 0:00:01]}  d5 {[%clk 0:00:00]} 14. e5 {[%clk 0:00:01]}  Nd7 {[%clk 0:00:00]} 15. f4 {[%clk 0:00:01]}  Qh4 {[%clk 0:00:00]} 16. Bd2 {[%clk 0:00:01]}  f6 {[%clk 0:00:00]} 17. exf6 {[%clk 0:00:01]}  Nxf6 {[%clk 0:00:00]} 18. Qe1 {[%clk 0:00:01]}  Rae8 {[%clk 0:00:00]} 19. Ne4 {[%clk 0:00:00]}  Qxe1 {[%clk 0:00:00]} 20. Nxf6+ {[%clk 0:00:00]}  gxf6 {[%clk 0:00:00]} 21. Raxe1 {[%clk 0:00:00]}  a5 {[%clk 0:00:00]} 22. b3 {[%clk 0:00:00]}  Bd4 {[%clk 0:00:00]} 23. Rf3 {[%clk 0:00:00]}  e5 {[%clk 0:00:00]} 24. fxe5 {[%clk 0:00:00]}  fxe5 {[%clk 0:00:00]} 25. Rg3+ {[%clk 0:00:00]}  Kh8 {[%clk 0:00:00]} 26. Bh6 {[%clk 0:00:00]}  Rf7 {[%clk 0:00:00]} 27. Be3 {[%clk 0:00:00]}  Bxe3 {[%clk 0:00:00]} 28. Rgxe3 {[%clk 0:00:00]}  e4 {[%clk 0:00:00]} 29. Kg1 {[%clk 0:00:00]}  d4 {[%clk 0:00:00]} 30. R3e2 {[%clk 0:00:00]}  Rfe7 {[%clk 0:00:00]} 31. Bb5 {[%clk 0:00:00]}  Bxb5 {[%clk 0:00:00]} 32. axb5 {[%clk 0:00:00]}  e3 {[%clk 0:00:00]} 33. Rd1 {[%clk 0:00:00]}  Rd7 {[%clk 0:00:00]} 34. Rd3 {[%clk 0:00:00]}  Rc8 {[%clk 0:00:00]} 35. Rexe3 {[%clk 0:00:00]}  dxe3 {[%clk 0:00:00]} 36. Rxd7 {[%clk 0:00:00]}  Rxc2 {[%clk 0:00:00]} 37. Kf1 {[%clk 0:00:00]}  Rf2+ {[%clk 0:00:00]} 38. Ke1 {[%clk 0:00:00]}  Rxg2 {[%clk 0:00:00]} 39. b6 {[%clk 0:00:00]}  Rg6 {[%clk 0:00:00]} 40. b7 {[%clk 0:00:00]}  Rb6 {[%clk 0:00:00]} 41. Rd8+ {[%clk 0:00:00]}  Kg7 {[%clk 0:00:00]} 42. b8=Q {[%clk 0:00:00]}  Rxb8 {[%clk 0:00:00]} 43. Rxb8 {[%clk 0:00:00]}  Kf6 {[%clk 0:00:00]} 44. Rb5 {[%clk 0:00:00]} 1-0


[Site "https://www.chess.com"]

[Event "Titled Tuesday Blitz May 2 Early 2023"]
[White "Colbow, Collin"]
[Black "Srihari L R"]
[WhiteFideId "16201132"]
[BlackFideId "46617116"]
[WhiteElo "2316"]
[BlackElo "2334"]
[Result "1/2-1/2"]
[Round "01"]
[TimeControl "180+2"]
[Date "2023.05.02"]
[WhiteClock "0:00:00"]
[BlackClock "0:00:00"]

1. Nf3 {[%clk 0:00:01]}  c5 {[%clk 0:00:01]} 2. d4 {[%clk 0:00:01]}  cxd4 {[%clk 0:00:01]} 3. Nxd4 {[%clk 0:00:01]}  e5 {[%clk 0:00:01]} 4. Nb3 {[%clk 0:00:01]}  d5 {[%clk 0:00:01]} 5. c4 {[%clk 0:00:01]}  Nf6 {[%clk 0:00:01]} 6. cxd5 {[%clk 0:00:01]}  Qxd5 {[%clk 0:00:01]} 7. Qxd5 {[%clk 0:00:01]}  Nxd5 {[%clk 0:00:01]} 8. e4 {[%clk 0:00:01]}  Nb4 {[%clk 0:00:01]} 9. Na3 {[%clk 0:00:01]}  N8c6 {[%clk 0:00:01]} 10. Bc4 {[%clk 0:00:01]}  Be7 {[%clk 0:00:01]} 11. O-O {[%clk 0:00:01]}  O-O {[%clk 0:00:01]} 12. Be3 {[%clk 0:00:01]}  a6 {[%clk 0:00:01]} 13. Rfc1 {[%clk 0:00:01]}  b5 {[%clk 0:00:01]} 14. Be2 {[%clk 0:00:01]}  Bb7 {[%clk 0:00:01]} 15. Nc2 {[%clk 0:00:01]}  Nxc2 {[%clk 0:00:01]} 16. Rxc2 {[%clk 0:00:01]}  Rfd8 {[%clk 0:00:01]} 17. Nc5 {[%clk 0:00:01]}  Bxc5 {[%clk 0:00:01]} 18. Rxc5 {[%clk 0:00:01]}  f6 {[%clk 0:00:01]} 19. f3 {[%clk 0:00:01]}  Rac8 {[%clk 0:00:01]} 20. Rac1 {[%clk 0:00:01]}  Kf7 {[%clk 0:00:00]} 21. Kf2 {[%clk 0:00:01]}  Nb8 {[%clk 0:00:00]} 22. b4 {[%clk 0:00:01]}  Rxc5 {[%clk 0:00:00]} 23. Rxc5 {[%clk 0:00:00]}  Rc8 {[%clk 0:00:00]} 24. Rxc8 {[%clk 0:00:00]}  Bxc8 {[%clk 0:00:00]} 25. Ke1 {[%clk 0:00:00]}  Nc6 {[%clk 0:00:00]} 26. Bc5 {[%clk 0:00:00]}  Nd8 {[%clk 0:00:00]} 27. Kd2 {[%clk 0:00:00]}  Ne6 {[%clk 0:00:00]} 28. Kc3 {[%clk 0:00:00]}  Ke8 {[%clk 0:00:00]} 29. g3 {[%clk 0:00:00]}  Kd7 {[%clk 0:00:00]} 30. Be3 {[%clk 0:00:00]}  Kc6 {[%clk 0:00:00]} 31. h4 {[%clk 0:00:00]}  Nd8 {[%clk 0:00:00]} 32. h5 {[%clk 0:00:00]}  g6 {[%clk 0:00:00]} 33. h6 {[%clk 0:00:00]}  Be6 {[%clk 0:00:00]} 34. a4 {[%clk 0:00:00]}  Nf7 {[%clk 0:00:00]} 35. f4 {[%clk 0:00:00]}  exf4 {[%clk 0:00:00]} 36. gxf4 {[%clk 0:00:00]}  f5 {[%clk 0:00:00]} 37. exf5 {[%clk 0:00:00]}  gxf5 {[%clk 0:00:00]} 38. axb5+ {[%clk 0:00:00]}  axb5 {[%clk 0:00:00]} 39. Kd4 {[%clk 0:00:00]}  Nxh6 {[%clk 0:00:00]} 40. Ke5 {[%clk 0:00:00]}  Bc4 {[%clk 0:00:00]} 41. Bf3+ {[%clk 0:00:00]}  Kd7 {[%clk 0:00:00]} 42. Kf6 {[%clk 0:00:00]}  Ng4+ {[%clk 0:00:00]} 43. Bxg4 {[%clk 0:00:00]}  fxg4 {[%clk 0:00:00]} 44. Bf2 {[%clk 0:00:00]}  h5 {[%clk 0:00:00]} 45. f5 {[%clk 0:00:00]}  Ke8 {[%clk 0:00:00]} 46. Kg6 {[%clk 0:00:00]}  Bd3 {[%clk 0:00:00]} 47. Kxh5 {[%clk 0:00:00]}  Bxf5 {[%clk 0:00:00]} 48. Kh4 {[%clk 0:00:00]}  Bd7 {[%clk 0:00:00]} 49. Kg3 {[%clk 0:00:00]}  Kf7 {[%clk 0:00:00]} 50. Bc5 {[%clk 0:00:00]}  Ke6 {[%clk 0:00:00]} 51. Bf8 {[%clk 0:00:00]}  Kd5 {[%clk 0:00:00]} 52. Bc5 {[%clk 0:00:00]}  Kc4 {[%clk 0:00:00]} 53. Bf8 {[%clk 0:00:00]}  Be6 {[%clk 0:00:00]} 54. Bc5 {[%clk 0:00:00]}  Kc3 {[%clk 0:00:00]} 55. Bf8 {[%clk 0:00:00]}  Kd3 {[%clk 0:00:00]} 56. Bc5 {[%clk 0:00:00]}  Ke4 {[%clk 0:00:00]} 57. Bf8 {[%clk 0:00:00]}  Kf5 {[%clk 0:00:00]} 58. Bc5 {[%clk 0:00:00]}  Kf6 {[%clk 0:00:00]} 59. Bf8 {[%clk 0:00:00]}  Kf7 {[%clk 0:00:00]} 60. Bc5 {[%clk 0:00:00]}  Bd7 {[%clk 0:00:00]} 61. Bd6 {[%clk 0:00:00]}  Ke6 {[%clk 0:00:00]} 62. Bc5 {[%clk 0:00:00]}  Ke5 {[%clk 0:00:00]} 63. Bf8 {[%clk 0:00:00]}  Kd5 {[%clk 0:00:00]} 64. Bc5 {[%clk 0:00:00]}  Kc4 {[%clk 0:00:00]} 65. Bf8 {[%clk 0:00:00]}  Kb3 {[%clk 0:00:00]} 66. Bc5 {[%clk 0:00:00]}  Kc4 {[%clk 0:00:00]} 1/2-1/2


[Site "https://www.chess.com"]

[Event "Titled Tuesday Blitz May 2 Early 2023"]
[White "Cherniaiev, Tykhon"]
[Black "Shubenkova, Veronika"]
[WhiteFideId "14182360"]
[BlackFideId "44124040"]
[WhiteElo "2450"]
[BlackElo "2027"]
[Result "1-0"]
[Round "01"]
[TimeControl "180+2"]
[Date "2023.05.02"]
[WhiteClock "0:00:00"]
[BlackClock "0:00:00"]

1. Nf3 {[%clk 0:00:01]}  d5 {[%clk 0:00:01]} 2. d4 {[%clk 0:00:01]}  Nf6 {[%clk 0:00:01]} 3. c4 {[%clk 0:00:01]}  c6 {[%clk 0:00:01]} 4. Nbd2 {[%clk 0:00:01]}  g6 {[%clk 0:00:01]} 5. e3 {[%clk 0:00:01]}  Bg7 {[%clk 0:00:01]} 6. Bd3 {[%clk 0:00:01]}  O-O {[%clk 0:00:01]} 7. O-O {[%clk 0:00:01]}  Bg4 {[%clk 0:00:01]} 8. h3 {[%clk 0:00:01]}  Bf5 {[%clk 0:00:01]} 9. Qc2 {[%clk 0:00:01]}  e6 {[%clk 0:00:01]} 10. b3 {[%clk 0:00:01]}  Nbd7 {[%clk 0:00:01]} 11. Bb2 {[%clk 0:00:01]}  h5 {[%clk 0:00:01]} 12. Rfe1 {[%clk 0:00:01]}  Bh6 {[%clk 0:00:01]} 13. e4 {[%clk 0:00:01]}  dxe4 {[%clk 0:00:01]} 14. Nxe4 {[%clk 0:00:01]}  Nxe4 {[%clk 0:00:01]} 15. Bxe4 {[%clk 0:00:01]}  Nf6 {[%clk 0:00:01]} 16. Bxf5 {[%clk 0:00:01]}  exf5 {[%clk 0:00:01]} 17. Rad1 {[%clk 0:00:01]}  Bg7 {[%clk 0:00:01]} 18. d5 {[%clk 0:00:01]}  cxd5 {[%clk 0:00:01]} 19. cxd5 {[%clk 0:00:01]}  Rc8 {[%clk 0:00:01]} 20. Qd3 {[%clk 0:00:01]}  Ne4 {[%clk 0:00:01]} 21. Bxg7 {[%clk 0:00:01]}  Kxg7 {[%clk 0:00:01]} 22. Qd4+ {[%clk 0:00:01]}  Qf6 {[%clk 0:00:01]} 23. Qxa7 {[%clk 0:00:01]}  Rc2 {[%clk 0:00:01]} 24. Rf1 {[%clk 0:00:01]}  g5 {[%clk 0:00:01]} 25. Nd4 {[%clk 0:00:00]}  Rb2 {[%clk 0:00:01]} 26. d6 {[%clk 0:00:00]}  Nxd6 {[%clk 0:00:01]} 27. Qa3 {[%clk 0:00:00]}  Rb1 {[%clk 0:00:00]} 28. Qxd6 {[%clk 0:00:00]}  Qxd6 {[%clk 0:00:00]} 29. Nxf5+ {[%clk 0:00:00]}  Kf6 {[%clk 0:00:00]} 30. Nxd6 {[%clk 0:00:00]}  Rb2 {[%clk 0:00:00]} 31. Nxb7 {[%clk 0:00:00]}  Rxa2 {[%clk 0:00:00]} 32. Nc5 {[%clk 0:00:00]}  Rb2 {[%clk 0:00:00]} 33. Nd7+ {[%clk 0:00:00]} 1-0


[Site "https://www.chess.com"]

[Event "Titled Tuesday Blitz May 2 Early 2023"]
[White "Andrews, Todd"]
[Black "Seo, Jung Min"]
[WhiteFideId "2012456"]
[BlackFideId "1734687"]
[WhiteElo "2217"]
[BlackElo "2468"]
[Result "0-1"]
[Round "01"]
[TimeControl "180+2"]
[Date "2023.05.02"]
[WhiteClock "0:00:00"]
[BlackClock "0:00:00"]

1. e4 {[%clk 0:00:01]}  c6 {[%clk 0:00:01]} 2. c4 {[%clk 0:00:01]}  d6 {[%clk 0:00:01]} 3. Nc3 {[%clk 0:00:01]}  e5 {[%clk 0:00:01]} 4. Nf3 {[%clk 0:00:01]}  Nf6 {[%clk 0:00:01]} 5. d4 {[%clk 0:00:01]}  Nbd7 {[%clk 0:00:01]} 6. Be2 {[%clk 0:00:01]}  Be7 {[%clk 0:00:01]} 7. O-O {[%clk 0:00:01]}  O-O {[%clk 0:00:01]} 8. Qc2 {[%clk 0:00:01]}  exd4 {[%clk 0:00:01]} 9. Nxd4 {[%clk 0:00:01]}  Re8 {[%clk 0:00:01]} 10. Nf5 {[%clk 0:00:01]}  Bf8 {[%clk 0:00:01]} 11. Rd1 {[%clk 0:00:01]}  Nc5 {[%clk 0:00:01]} 12. Ng3 {[%clk 0:00:01]}  g6 {[%clk 0:00:01]} 13. b4 {[%clk 0:00:01]}  Ne6 {[%clk 0:00:01]} 14. e5 {[%clk 0:00:01]}  Nd7 {[%clk 0:00:01]} 15. exd6 {[%clk 0:00:01]}  c5 {[%clk 0:00:01]} 16. b5 {[%clk 0:00:01]}  Nd4 {[%clk 0:00:01]} 17. Qd3 {[%clk 0:00:01]}  Ne5 {[%clk 0:00:01]} 18. Qd2 {[%clk 0:00:01]}  Bxd6 {[%clk 0:00:01]} 19. Nge4 {[%clk 0:00:01]}  Bf5 {[%clk 0:00:01]} 20. f4 {[%clk 0:00:01]}  Nxc4 {[%clk 0:00:01]} 21. Bxc4 {[%clk 0:00:01]}  Bxe4 {[%clk 0:00:01]} 22. Bb2 {[%clk 0:00:00]}  Qh4 {[%clk 0:00:01]} 23. Rf1 {[%clk 0:00:00]}  Rad8 {[%clk 0:00:01]} 24. Rae1 {[%clk 0:00:00]}  Bf5 {[%clk 0:00:01]} 25. Rxe8+ {[%clk 0:00:00]}  Rxe8 {[%clk 0:00:01]} 26. Nd5 {[%clk 0:00:00]}  b6 {[%clk 0:00:01]} 27. Kh1 {[%clk 0:00:00]}  Bf8 {[%clk 0:00:01]} 28. Bxd4 {[%clk 0:00:00]}  cxd4 {[%clk 0:00:00]} 29. Qxd4 {[%clk 0:00:00]}  Bg7 {[%clk 0:00:00]} 30. Qd2 {[%clk 0:00:00]}  h5 {[%clk 0:00:00]} 31. Ne3 {[%clk 0:00:00]}  Be4 {[%clk 0:00:00]} 32. f5 {[%clk 0:00:00]}  Bh6 {[%clk 0:00:00]} 33. fxg6 {[%clk 0:00:00]}  Bxg6 {[%clk 0:00:00]} 34. Qd7 {[%clk 0:00:00]}  Qe7 {[%clk 0:00:00]} 35. Qxe7 {[%clk 0:00:00]}  Rxe7 {[%clk 0:00:00]} 36. Nd5 {[%clk 0:00:00]}  Re5 {[%clk 0:00:00]} 37. Nf6+ {[%clk 0:00:00]}  Kg7 {[%clk 0:00:00]} 38. Nd7 {[%clk 0:00:00]}  Re3 {[%clk 0:00:00]} 39. Nb8 {[%clk 0:00:00]}  Rc3 {[%clk 0:00:00]} 40. Bb3 {[%clk 0:00:00]}  Bd3 {[%clk 0:00:00]} 41. Rxf7+ {[%clk 0:00:00]}  Kg6 {[%clk 0:00:00]} 42. h3 {[%clk 0:00:00]}  Rxb3 {[%clk 0:00:00]} 43. axb3 {[%clk 0:00:00]}  Kxf7 {[%clk 0:00:00]} 44. Nc6 {[%clk 0:00:00]}  Bxb5 {[%clk 0:00:00]} 45. Nxa7 {[%clk 0:00:00]}  Bd7 {[%clk 0:00:00]} 46. b4 {[%clk 0:00:00]}  b5 {[%clk 0:00:00]} 47. Kg1 {[%clk 0:00:00]}  Be3+ {[%clk 0:00:00]} 0-1


[Site "https://www.chess.com"]

[Event "Titled Tuesday Blitz May 2 Early 2023"]
[White "Fernandez Guillen, Ernesto J."]
[Black "Harriott, Tyrell"]
[WhiteFideId "3512428"]
[BlackFideId "2086484"]
[WhiteElo "2423"]
[BlackElo "2107"]
[Result "1-0"]
[Round "01"]
[TimeControl "180+2"]
[Date "2023.05.02"]
[WhiteClock "0:00:01"]
[BlackClock "0:00:00"]

1. e4 {[%clk 0:00:01]}  e6 {[%clk 0:00:01]} 2. Nf3 {[%clk 0:00:01]}  d5 {[%clk 0:00:01]} 3. Nc3 {[%clk 0:00:01]}  f5 {[%clk 0:00:01]} 4. e5 {[%clk 0:00:01]}  c5 {[%clk 0:00:01]} 5. d4 {[%clk 0:00:01]}  Nc6 {[%clk 0:00:01]} 6. Ne2 {[%clk 0:00:01]}  Nge7 {[%clk 0:00:01]} 7. c3 {[%clk 0:00:01]}  Ng6 {[%clk 0:00:01]} 8. h4 {[%clk 0:00:01]}  Be7 {[%clk 0:00:01]} 9. h5 {[%clk 0:00:01]}  Nf8 {[%clk 0:00:01]} 10. Be3 {[%clk 0:00:01]}  Nd7 {[%clk 0:00:01]} 11. Nf4 {[%clk 0:00:01]}  Ndb8 {[%clk 0:00:01]} 12. Bd3 {[%clk 0:00:01]}  cxd4 {[%clk 0:00:01]} 13. cxd4 {[%clk 0:00:01]}  Qa5+ {[%clk 0:00:01]} 14. Kf1 {[%clk 0:00:01]}  Na6 {[%clk 0:00:01]} 15. a3 {[%clk 0:00:01]}  Qd8 {[%clk 0:00:01]} 16. b4 {[%clk 0:00:01]}  Nc7 {[%clk 0:00:01]} 17. g4 {[%clk 0:00:01]}  fxg4 {[%clk 0:00:01]} 18. Nh2 {[%clk 0:00:01]}  O-O {[%clk 0:00:01]} 19. Qxg4 {[%clk 0:00:01]}  Qe8 {[%clk 0:00:01]} 20. Rg1 {[%clk 0:00:01]}  Qf7 {[%clk 0:00:01]} 21. h6 {[%clk 0:00:01]}  g6 {[%clk 0:00:00]} 22. Nxg6 {[%clk 0:00:01]}  hxg6 {[%clk 0:00:00]} 23. Bxg6 {[%clk 0:00:01]}  Qxf2+ {[%clk 0:00:00]} 24. Bxf2 {[%clk 0:00:01]}  Kh8 {[%clk 0:00:00]} 25. Bf7 {[%clk 0:00:01]}  Bg5 {[%clk 0:00:00]} 26. Qxg5 {[%clk 0:00:01]} 1-0


[Site "https://www.chess.com"]